fUST/lending_fUST_20251003
["ID","MTS","AMOUNT","RATE_DAILY","PERIOD"]
[388846901,1759420838958,1000.0,0.00028767,120]
[388846909,1759420957238,217.89353458,0.0002876,120]
[388846922,1759421265255,-5000.0,0.00020825,2]
[388846923,1759421282884,-5000.0,0.00021036,2]
[388846925,1759421358753,500.0,0.00027397,120]
[388846972,1759421432770,-1548.03062728,0.00021036,2]
[388847055,1759421438827,-2996.75,0.00021036,2]
[388847219,1759421440792,-455.21937272,0.00021036,2]
[388847221,1759421440801,-1177.123966,0.000219,2]
[388847223,1759421440811,-417.391565,0.00022743,2]
[388847225,1759421440821,-300.0,0.00022771,2]
[388847227,1759421440831,-300.0,0.00022771,2]
[388847228,1759421440840,-174.0,0.00022771,2]
[388847229,1759421440850,-12500.0,0.00022772,7]
[388847231,1759421440860,-160.0,0.00022772,7]
[388847234,1759421440870,-293.43242757,0.00022772,7]
[388847237,1759421440880,-390.54866873,0.00023,2]
[388847283,1759421446630,-651.11799794,0.00023,2]
[388847284,1759421446640,-234.00747223,0.00024,7]
[388847285,1759421446650,-1041.66666667,0.00024,7]
[388847286,1759421446659,-293.43242757,0.00024619,2]
[388847287,1759421446669,-71.97314805,0.00024619,2]
[388847289,1759421527226,358.16107713,0.00019,2]
[388847290,1759421669172,500.0,0.00027397,120]
[388847291,1759421699561,900.0,0.0002,2]
[388847293,1759421759677,1500.0,0.00016438,2]
[388847295,1759421795584,160.0,0.0002,2]
[388847297,1759421977568,500.0,0.00027397,120]
[388847312,1759422121276,160.0,0.0002,2]
[388847313,1759422147391,1221.02685195,0.0002,2]
[388847314,1759422147832,187.0,0.00025086,120]
[388847315,1759422149156,187.0,0.00026341,120]
[388847316,1759422150451,187.0,0.00027658,120]
[388847327,1759422521633,150.99999979,0.0002,120]
[388847329,1759422527631,700.81207092,0.00019063,7]
[388847330,1759422527658,5000.0,0.00019063,7]
[388847333,1759422590278,500.0,0.00027397,120]
[388847334,1759422620286,5000.0,0.00019,2]
[388847366,1759422632729,-300.0,0.00019062,2]
[388847368,1759422632743,-74.10780233,0.00019062,2]
[388847372,1759422632794,-225.89219767,0.00019062,2]
[388847374,1759422632804,-300.0,0.00019062,2]
[388847376,1759422632814,-300.0,0.00019062,2]
[388847378,1759422632825,-734.95350452,0.00019062,2]
[388847412,1759422638623,-211.82734501,0.00019062,2]
[388847413,1759422638634,-23426.69402218,0.00019063,7]
[388847415,1759422638644,-293.43242757,0.00019063,7]
[388847417,1759422638655,-22075.3657909,0.000203,2]
[388847419,1759422638665,-420.0,0.00020776,2]
[388847420,1759422638675,-160.0,0.00021024,2]
[388847421,1759422638685,-160.0,0.00021024,2]
[388847422,1759422638697,-155.5,0.000212,2]
[388847423,1759422638707,-188.50095,0.000214,2]
[388847424,1759422638717,-150.0,0.000216,2]
[388847425,1759422638727,-212.85,0.000216,2]
[388847426,1759422638738,-190.787347,0.000217,3]
[388847427,1759422638748,-190.787347,0.00022333,2]
[388847428,1759422638758,-293.43242757,0.00022497,2]
[388847429,1759422638768,-587.0,0.00022645,2]
[388847430,1759422638778,-3132.95249502,0.00022672,2]
[388847431,1759422638791,-373.07,0.0002276,10]
[388847432,1759422638804,-310.89,0.0002276,10]
[388847433,1759422638814,-1320.15,0.00022762,3]
[388847434,1759422638825,-660.08,0.00022762,3]
[388847435,1759422638836,-330.04,0.00022762,3]
[388847436,1759422638845,-165.02,0.00022762,3]
[388847437,1759422638856,-495.07,0.00022762,3]
[388847438,1759422638871,-500.0,0.00022769,2]
[388847439,1759422638881,-500.0,0.00022769,2]
[388847440,1759422638892,-528.49053026,0.00022769,2]
[388847441,1759422638902,-500.0,0.00022769,2]
[388847442,1759422638913,-461.83769564,0.00022769,2]
[388847443,1759422638923,-481.83167413,0.00022769,2]
[388847444,1759422638933,-1809.09132067,0.00022769,2]
[388847445,1759422638947,-399.26867933,0.00022769,2]
[388847446,1759422638957,-3894.58,0.00022769,2]
[388847447,1759422638967,-500.0,0.00022769,2]
[388847448,1759422638977,-500.0,0.00022769,2]
[388847449,1759422638987,-1121.85,0.00022769,2]
[388847450,1759422638997,-500.0,0.00022769,2]
[388847451,1759422639007,-500.0,0.00022769,2]
[388847452,1759422639017,-500.0,0.00022769,2]
[388847453,1759422639027,-500.0,0.00022769,2]
[388847454,1759422639036,-1445.98,0.00022769,2]
[388847455,1759422639046,-500.0,0.00022769,2]
[388847456,1759422639056,-500.0,0.00022769,2]
[388847457,1759422639066,-542.77449389,0.00022769,2]
[388847458,1759422639077,-500.0,0.00022769,2]
[388847459,1759422639087,-500.0,0.00022769,2]
[388847460,1759422639097,-500.0,0.00022769,2]
[388847461,1759422639107,-626.64207011,0.00022769,2]
[388847462,1759422639118,-533.14452639,0.00022769,2]
[388847463,1759422639128,-500.0,0.00022769,2]
[388847464,1759422639138,-481.70309378,0.00022769,2]
[388847465,1759422639147,-592.9362514,0.00022769,2]
[388847466,1759422639157,-500.0,0.0002277,2]
[388847467,1759422639166,-500.0,0.0002277,2]
[388847468,1759422639176,-500.0,0.0002277,2]
[388847469,1759422639186,-522.63150401,0.0002277,2]
[388847470,1759422639195,-500.0,0.0002277,2]
[388847471,1759422639205,-500.0,0.0002277,2]
[388847472,1759422639215,-481.45348257,0.0002277,2]
[388847473,1759422639226,-481.7134313,0.0002277,2]
[388847474,1759422639235,-500.0,0.0002277,2]
[388847475,1759422639245,-4812.74,0.0002277,2]
[388847476,1759422639255,-500.0,0.0002277,2]
[388847477,1759422639264,-500.0,0.0002277,2]
[388847478,1759422639274,-500.0,0.0002277,2]
[388847479,1759422639284,-500.0,0.0002277,2]
[388847480,1759422639294,-3379.54,0.0002277,2]
[388847481,1759422639305,-1593.57,0.0002277,2]
[388847482,1759422639314,-500.0,0.0002277,2]
[388847483,1759422639324,-2033.62,0.0002277,2]
[388847484,1759422639333,-695.82,0.0002277,2]
[388847485,1759422639343,-790.72,0.0002277,2]
[388847486,1759422639352,-677.44,0.0002277,2]
[388847487,1759422639362,-2281.51,0.0002277,2]
[388847488,1759422639372,-500.0,0.0002277,2]
[388847489,1759422639381,-1432.49,0.0002277,2]
[388847490,1759422639391,-1678.69,0.0002277,2]
[388847491,1759422639400,-2736.76,0.0002277,2]
[388847492,1759422639410,-1314.27,0.0002277,2]
[388847493,1759422639420,-178.62086351,0.0002277,2]
[388847494,1759422639430,-500.0,0.0002277,2]
[388847495,1759422639440,-500.0,0.0002277,2]
[388847496,1759422639450,-4547.37,0.0002277,2]
[388847497,1759422639459,-1610.47,0.0002277,2]
[388847498,1759422639469,-1888.06,0.0002277,2]
[388847499,1759422639478,-482.71101451,0.0002277,2]
[388847500,1759422639488,-920.21,0.0002277,2]
[388847501,1759422639497,-1723.47,0.0002277,2]
[388847502,1759422639507,-485.38786453,0.0002277,2]
[388847503,1759422639517,-1045.72371344,0.0002277,2]
[388847543,1759422642891,-482.72512584,0.00022769,2]
[388847544,1759422642902,-4029.27628656,0.0002277,2]
[388847545,1759422642912,-618.21,0.0002277,2]
[388847546,1759422642921,-3282.78,0.0002277,2]
[388847547,1759422642931,-852.35,0.0002277,2]
[388847548,1759422642942,-500.0,0.0002277,2]
[388847549,1759422642952,-500.0,0.00022771,2]
[388847550,1759422642962,-484.15531633,0.00022771,2]
[388847551,1759422642972,-500.0,0.00022771,2]
[388847552,1759422642981,-500.0,0.00022771,2]
[388847553,1759422642992,-594.69,0.00022771,2]
[388847554,1759422643002,-500.0,0.00022771,2]
[388847555,1759422643012,-500.0,0.00022771,2]
[388847556,1759422643021,-567.56,0.00022771,2]
[388847557,1759422643031,-500.0,0.00022771,2]
[388847558,1759422643040,-500.0,0.00022771,2]
[388847559,1759422643050,-500.0,0.00022771,2]
[388847560,1759422643059,-500.0,0.00022771,2]
[388847561,1759422643069,-483.12936859,0.00022771,2]
[388847562,1759422643078,-500.0,0.00022771,2]
[388847563,1759422643088,-748.11,0.00022771,2]
[388847564,1759422643098,-1016.84,0.00022771,2]
[388847565,1759422643108,-1868.1139219,0.00022771,2]
[388847567,1759422643163,-1300.0,0.00022541,2]
[388847569,1759422643176,-3700.0,0.00022541,2]
[388847572,1759422643185,-2031.3160781,0.00022771,2]
[388847575,1759422643198,-850.33,0.00022771,2]
[388847580,1759422643208,-485.16356317,0.00022771,2]
[388847581,1759422643218,-612.51,0.00022771,2]
[388847584,1759422643227,-500.0,0.00022771,2]
[388847586,1759422643237,-500.0,0.00022771,2]
[388847588,1759422643246,-500.0,0.00022771,2]
[388847591,1759422643256,-500.0,0.00022771,2]
[388847593,1759422643266,-500.0,0.00022771,2]
[388847595,1759422643276,-500.0,0.00022771,2]
[388847597,1759422643286,-500.0,0.00022771,2]
[388847599,1759422643295,-2757.32,0.00022771,2]
[388847602,1759422643305,-500.0,0.00022771,2]
[388847604,1759422643315,-500.0,0.00022771,2]
[388847605,1759422643325,-500.0,0.00022771,2]
[388847606,1759422643335,-481.68582528,0.00022771,2]
[388847607,1759422643345,-550.12,0.00022771,2]
[388847608,1759422643354,-500.0,0.00022771,2]
[388847610,1759422643365,-1412.31,0.00022771,2]
[388847612,1759422643375,-500.0,0.00022771,2]
[388847613,1759422643385,-482.02305062,0.00022771,2]
[388847615,1759422643394,-637.2,0.00022771,2]
[388847617,1759422643404,-1315.81,0.00022771,2]
[388847619,1759422643414,-34.21148283,0.00022771,2]
[388847901,1759422858936,5000.0,0.00019,2]
[388847902,1759422881779,4100.0,0.00019,2]
[388847903,1759422897053,500.0,0.00027397,120]
[388847921,1759423204499,775.06842738,0.00027397,120]
[388847923,1759423509867,151.0,0.00028767,120]
[388847943,1759423832016,-300.0,0.00018512,2]
[388847944,1759423832026,-300.0,0.00018512,2]
[388847945,1759423832036,-300.0,0.00018512,2]
[388847946,1759423832046,-465.64238689,0.00018513,2]
[388848168,1759423839820,-4534.35761311,0.00018513,2]
[388848170,1759423839831,-500.0,0.00018513,2]
[388848172,1759423839841,-500.0,0.000187,2]
[388848174,1759423839852,-1258.0,0.00019,4]
[388848176,1759423839862,-500.0,0.00019013,2]
[388848178,1759423839872,-269.08196975,0.00019078,2]
[388848180,1759423839884,-825.09,0.00019168,3]
[388848182,1759423839894,-412.55,0.00019168,3]
[388848184,1759423839903,-206.27,0.00019168,3]
[388848186,1759423839913,-618.85,0.00019168,3]
[388848187,1759423839923,-500.0,0.00019178,2]
[388848190,1759423839933,-484.12576609,0.00019178,2]
[388848192,1759423839945,-855.59,0.00019178,2]
[388848193,1759423839955,-500.0,0.00019178,2]
[388848195,1759423839966,-482.35384118,0.00019178,2]
[388848197,1759423839976,-500.0,0.00019178,2]
[388848199,1759423839986,-500.0,0.00019178,2]
[388848201,1759423839997,-500.0,0.00019178,2]
[388848203,1759423840007,-500.0,0.00019178,2]
[388848205,1759423840017,-523.41,0.00019178,2]
[388848207,1759423840028,-500.0,0.00019178,2]
[388848209,1759423840038,-500.0,0.00019178,2]
[388848211,1759423840049,-500.0,0.00019178,2]
[388848213,1759423840059,-500.0,0.00019178,2]
[388848215,1759423840068,-500.0,0.00019178,2]
[388848217,1759423840078,-500.0,0.00019178,2]
[388848219,1759423840087,-500.0,0.00019178,2]
[388848221,1759423840097,-500.0,0.00019178,2]
[388848223,1759423840107,-500.0,0.00019178,2]
[388848225,1759423840122,-500.0,0.00019178,2]
[388848227,1759423840132,-500.0,0.00019178,2]
[388848228,1759423840141,-500.0,0.00019178,2]
[388848230,1759423840151,-530.23724365,0.00019178,2]
[388848233,1759423840161,-500.0,0.00019178,2]
[388848235,1759423840171,-500.0,0.00019178,2]
[388848236,1759423840181,-500.0,0.00019178,2]
[388848238,1759423840191,-543.91,0.00019178,2]
[388848240,1759423840202,-665.87,0.00019178,2]
[388848242,1759423840212,-462.07436987,0.00019178,2]
[388848244,1759423840221,-151.0,0.00019178,2]
[388848246,1759423840232,-500.0,0.00019178,2]
[388848248,1759423840242,-500.0,0.00019178,2]
[388848250,1759423840252,-526.7,0.00019178,2]
[388848252,1759423840263,-463.46956111,0.00019178,2]
[388848254,1759423840273,-500.0,0.00019178,2]
[388848256,1759423840282,-500.0,0.00019178,2]
[388848258,1759423840292,-500.0,0.00019178,2]
[388848260,1759423840301,-862.14,0.00019178,2]
[388848262,1759423840312,-173.951152,0.00019178,2]
[388848264,1759423840322,-173.951152,0.00019178,2]
[388848266,1759423840332,-173.951152,0.00019178,2]
[388848268,1759423840341,-316.61170793,0.00019178,2]
[388848270,1759423840350,-152.265602,0.00019178,2]
[388848272,1759423840360,-151.0,0.00019178,2]
[388848274,1759423840370,-500.0,0.00019178,2]
[388848276,1759423840379,-151.0,0.00019178,2]
[388848278,1759423840389,-2167.27,0.00019178,2]
[388848280,1759423840398,-151.0,0.00019178,2]
[388848282,1759423840408,-173.951152,0.00019178,2]
[388848283,1759423840419,-151.0,0.00019178,2]
[388848286,1759423840430,-151.0,0.00019178,2]
[388848288,1759423840441,-500.0,0.00019178,2]
[388848290,1759423840450,-974.47,0.00019178,2]
[388848292,1759423840460,-501.95729126,0.00019178,2]
[388848294,1759423840470,-3736.96,0.00019178,2]
[388848296,1759423840480,-151.0,0.00019178,2]
[388848297,1759423840492,-151.0,0.00019178,2]
[388848299,1759423840501,-814.89,0.00019178,2]
[388848301,1759423840512,-484.12808065,0.00019178,2]
[388848303,1759423840522,-151.0,0.00019178,2]
[388848305,1759423840531,-500.0,0.00019178,2]
[388848307,1759423840541,-500.0,0.00019178,2]
[388848309,1759423840550,-151.0,0.00019178,2]
[388848311,1759423840559,-2642.43,0.00019178,2]
[388848313,1759423840569,-151.0,0.00019178,2]
[388848315,1759423840577,-151.0,0.00019178,2]
[388848317,1759423840587,-151.0,0.00019178,2]
[388848318,1759423840597,-500.0,0.00019178,2]
[388848319,1759423840606,-488.22193707,0.00019178,2]
[388848320,1759423840617,-500.0,0.00019178,2]
[388848321,1759423840627,-508.98,0.00019178,2]
[388848322,1759423840637,-8.93040833,0.00019178,2]
[388851935,1759424040102,1189.65723472,0.000183,2]
[388851936,1759424197971,208.695783,0.00018143,2]
[388851937,1759424218623,1000.0,0.00028767,120]
[388851938,1759424229381,1000.0,0.00028767,120]
[388851939,1759424235302,1000.0,0.00028767,120]
[388851940,1759424240648,1000.0,0.00028767,120]
[388851941,1759424248461,1000.0,0.00028767,120]
[388851942,1759424257036,1000.0,0.00028767,120]
[388851943,1759424263371,1000.0,0.00028767,120]
[388851944,1759424269516,1000.0,0.00028767,120]
[388851946,1759424284344,1000.0,0.00028767,120]
[388851947,1759424290722,1000.0,0.00028767,120]
[388851948,1759424295547,1000.0,0.00028767,120]
[388851949,1759424300399,1000.0,0.00028767,120]
[388851950,1759424310948,500.0,0.00028767,120]
[388851955,1759424419930,800.0,0.0002876,120]
[388851956,1759424425327,400.0,0.0002876,120]
[388851957,1759424439929,188.50095,0.00018173,2]
[388851958,1759424491116,200.0,0.0002876,120]
[388851964,1759424850226,1500.0,0.00016438,2]
[388851965,1759424974843,3810.1220409,0.00018127,2]
[388851966,1759424982411,476.75739044,0.000183,2]
[388851967,1759424998159,4024.62961866,0.000183,2]
[388851968,1759424998182,975.37038134,0.000183,2]
[388851969,1759425006086,1452.79140436,0.000183,2]
[388851970,1759425014089,5000.0,0.000183,2]
[388851971,1759425029328,5000.0,0.000183,2]
[388852004,1759425032101,-300.0,0.00018356,2]
[388852005,1759425032111,-300.0,0.00018356,2]
[388852006,1759425032122,-503.75507954,0.00018357,2]
[388852007,1759425032132,-2015.02031814,0.00018357,2]
[388852008,1759425032143,-4529.26192011,0.00018357,2]
[388852009,1759425032153,-204.83771442,0.000185,2]
[388852010,1759425032163,-500.0,0.000185,2]
[388852012,1759425032174,-600.0,0.000186,2]
[388852014,1759425032184,-600.0,0.00019,2]
[388852016,1759425032195,-4293.2551987,0.00019078,2]
[388852018,1759425032205,-4293.25519869,0.00019147,2]
[388852019,1759425032215,-481.3,0.00019168,3]
[388852021,1759425032225,-240.65,0.00019168,3]
[388852023,1759425032235,-721.97,0.00019168,3]
[388852025,1759425032245,-500.0,0.00019173,2]
[388852027,1759425032255,-500.0,0.00019173,2]
[388852029,1759425032266,-500.0,0.00019173,2]
[388852031,1759425032276,-481.90178294,0.00019173,2]
[388852033,1759425032287,-500.0,0.00019173,2]
[388852035,1759425032297,-500.0,0.00019173,2]
[388852037,1759425032307,-500.0,0.00019173,2]
[388852039,1759425032317,-500.0,0.00019173,2]
[388852040,1759425032327,-500.0,0.00019173,2]
[388852042,1759425032337,-500.0,0.00019173,2]
[388852044,1759425032346,-500.0,0.00019173,2]
[388852046,1759425032356,-500.0,0.00019173,2]
[388852048,1759425032366,-500.0,0.00019173,2]
[388852050,1759425032376,-500.0,0.00019173,2]
[388852052,1759425032386,-500.0,0.00019173,2]
[388852054,1759425032396,-500.0,0.00019173,2]
[388852056,1759425032406,-476.71160914,0.00019173,2]
[388852058,1759425032416,-500.0,0.00019173,2]
[388852060,1759425032426,-500.0,0.00019173,2]
[388852062,1759425032436,-500.0,0.00019173,2]
[388852063,1759425032446,-500.0,0.00019173,2]
[388852065,1759425032457,-500.0,0.00019173,2]
[388852067,1759425032473,-500.0,0.00019173,2]
[388852069,1759425032483,-500.0,0.00019173,2]
[388852071,1759425032495,-500.0,0.00019173,2]
[388852073,1759425032505,-341.08914693,0.00019173,2]
[388852075,1759425032518,-500.0,0.00019173,2]
[388852077,1759425032528,-500.0,0.00019177,2]
[388852078,1759425032540,-250.0,0.00019177,2]
[388852080,1759425032550,-500.0,0.00019177,2]
[388852082,1759425032560,-500.0,0.00019178,2]
[388852084,1759425032570,-500.0,0.00019178,2]
[388852086,1759425032581,-500.0,0.00019178,2]
[388852088,1759425032591,-679.03,0.00019178,2]
[388852090,1759425032600,-500.0,0.00019178,2]
[388852092,1759425032610,-482.97227652,0.00019178,2]
[388852094,1759425032620,-500.0,0.00019178,2]
[388852096,1759425032631,-500.0,0.00019178,2]
[388852097,1759425032641,-508.79,0.00019178,2]
[388852099,1759425032651,-500.0,0.00019178,2]
[388852100,1759425032661,-500.0,0.00019178,2]
[388852101,1759425032672,-500.0,0.00019178,2]
[388852102,1759425032683,-482.34741862,0.00019178,2]
[388852103,1759425032693,-500.0,0.00019178,2]
[388852104,1759425032704,-500.0,0.00019178,2]
[388852105,1759425032713,-500.0,0.00019178,2]
[388852106,1759425032723,-484.29784541,0.00019178,2]
[388852107,1759425032733,-512.54,0.00019178,2]
[388852108,1759425032743,-500.0,0.00019178,2]
[388852109,1759425032752,-500.0,0.00019178,2]
[388852110,1759425032762,-500.0,0.00019178,2]
[388852111,1759425032771,-500.0,0.00019178,2]
[388852112,1759425032780,-464.53675599,0.00019178,2]
[388852113,1759425032790,-500.0,0.00019178,2]
[388852114,1759425032800,-275.77603804,0.00019178,2]
[388852115,1759425032810,-500.0,0.00019178,2]
[388852116,1759425032819,-500.0,0.00019178,2]
[388852117,1759425032829,-501.03833211,0.00019178,2]
[388852118,1759425032839,-223.1815181,0.00019178,2]
[388852119,1759425032854,-276.8184819,0.00019178,2]
[388852120,1759425032864,-500.0,0.00019178,2]
[388852121,1759425032874,-482.07707137,0.00019178,2]
[388852122,1759425032884,-500.0,0.00019178,2]
[388852123,1759425032894,-269.00751804,0.00019178,2]
[388852124,1759425032912,-129.69396472,0.00019178,2]
[388852125,1759425032922,-500.0,0.00019178,2]
[388852126,1759425032933,-500.0,0.00019178,2]
[388852127,1759425032943,-337.42254407,0.00019178,2]
[388852128,1759425032955,-125.08990585,0.00019178,2]
[388852129,1759425032965,-500.0,0.00019178,2]
[388852130,1759425032976,-380.42274515,0.00019178,2]
[388852208,1759425038134,-1807.1266657,0.00019173,2]
[388852394,1759425040328,-273.69464629,0.00019173,2]
[388852658,1759425223587,0.01,0.00018122,2]
[388852659,1759425223612,201.9650286,0.00018122,2]
[388852661,1759425391009,3786.82107412,0.00017437,2]
[388852662,1759425393139,751.52416341,0.0001744,2]
[388852663,1759425395172,3006.09665365,0.0001744,2]
[388852664,1759425396938,6763.71747071,0.0001744,2]
[388852699,1759426177027,400.0,0.000284,120]
[388852740,1759426232495,-1000.0,0.000189,2]
[388852742,1759426232505,-302.84859387,0.000189,2]
[388852744,1759426232514,-253.32580939,0.00019073,2]
[388852745,1759426232524,-253.32580937,0.00019076,2]
[388852746,1759426232534,-300.0,0.00019077,2]
[388852748,1759426232543,-2575.95311923,0.00019078,2]
[388852750,1759426232552,-253.32580937,0.00019078,2]
[388852752,1759426232562,-10000.0,0.00019078,2]
[388852754,1759426232572,-302.84859387,0.00019089,2]
[388852756,1759426232581,-2575.95311921,0.00019147,2]
[388852758,1759426232591,-13267.22745543,0.00019168,2]
[388852760,1759426232601,-186.622,0.00019168,2]
[388852762,1759426232611,-240.65,0.00019168,3]
[388852764,1759426232622,-721.95,0.00019168,3]
[388852766,1759426232632,-501.69416085,0.00019173,2]
[388852768,1759426232642,-500.0,0.00019173,2]
[388852770,1759426232652,-500.0,0.00019173,2]
[388852772,1759426232662,-500.0,0.00019173,2]
[388852774,1759426232673,-500.0,0.00019173,2]
[388852776,1759426232683,-505.28775606,0.00019173,2]
[388852778,1759426232693,-500.0,0.00019173,2]
[388852780,1759426232703,-500.0,0.00019173,2]
[388852782,1759426232712,-330.27580962,0.00019173,2]
[388852784,1759426232722,-500.0,0.00019173,2]
[388852786,1759426232731,-500.0,0.00019173,2]
[388852788,1759426232741,-500.0,0.00019173,2]
[388852790,1759426232750,-280.76074951,0.00019173,2]
[388852792,1759426232760,-374.63233655,0.00019173,2]
[388852793,1759426232770,-500.0,0.00019173,2]
[388852795,1759426232780,-500.0,0.00019173,2]
[388852796,1759426232794,-500.0,0.00019173,2]
[388852797,1759426232804,-500.0,0.00019173,2]
[388852798,1759426232814,-500.0,0.00019173,2]
[388852799,1759426232825,-500.0,0.00019173,2]
[388852800,1759426232836,-500.0,0.00019173,2]
[388852801,1759426232846,-500.0,0.00019173,2]
[388852802,1759426232857,-500.0,0.00019173,2]
[388852803,1759426232869,-501.33730105,0.00019173,2]
[388852804,1759426232879,-500.0,0.00019173,2]
[388852805,1759426232889,-512.16892121,0.00019173,2]
[388852806,1759426232899,-500.0,0.00019173,2]
[388852807,1759426232909,-500.0,0.00019173,2]
[388852808,1759426232918,-500.0,0.00019173,2]
[388852809,1759426232928,-150.16966115,0.00019173,2]
[388852810,1759426232938,-500.0,0.00019173,2]
[388852811,1759426232949,-500.0,0.00019173,2]
[388852812,1759426232960,-151.0,0.00019173,2]
[388852813,1759426232970,-151.0,0.00019173,2]
[388852814,1759426232979,-265.441213,0.00019173,2]
[388852815,1759426232988,-160.024399,0.00019173,2]
[388852816,1759426232998,-151.0,0.00019173,2]
[388852817,1759426233008,-151.0,0.00019173,2]
[388852818,1759426233018,-151.0,0.00019173,2]
[388852819,1759426233029,-151.0,0.00019173,2]
[388852820,1759426233039,-1468.596906,0.00019173,2]
[388852821,1759426233050,-1468.596906,0.00019173,2]
[388852822,1759426233061,-1468.596906,0.00019173,2]
[388852823,1759426233071,-1468.596906,0.00019173,2]
[388852824,1759426233081,-151.0,0.00019173,2]
[388852825,1759426233093,-500.0,0.00019173,2]
[388852826,1759426233104,-441.0,0.00019173,2]
[388852827,1759426233115,-151.0,0.00019173,2]
[388852828,1759426233126,-151.0,0.00019173,2]
[388852829,1759426233138,-151.0,0.00019173,2]
[388852830,1759426233147,-151.0,0.00019173,2]
[388852831,1759426233158,-151.0,0.00019173,2]
[388852832,1759426233170,-151.0,0.00019173,2]
[388852833,1759426233181,-500.0,0.00019173,2]
[388852834,1759426233191,-151.28892508,0.00019173,2]
[388852835,1759426233200,-500.0,0.00019173,2]
[388852836,1759426233209,-151.0,0.00019173,2]
[388852837,1759426233219,-151.0,0.00019173,2]
[388852838,1759426233228,-151.0,0.00019173,2]
[388852839,1759426233238,-151.0,0.00019173,2]
[388852840,1759426233247,-151.0,0.00019173,2]
[388852841,1759426233257,-151.0,0.00019173,2]
[388852842,1759426233268,-151.0,0.00019173,2]
[388852843,1759426233278,-151.0,0.00019173,2]
[388852844,1759426233288,-151.0,0.00019173,2]
[388852845,1759426233298,-151.0,0.00019173,2]
[388852846,1759426233309,-151.0,0.00019173,2]
[388852847,1759426233321,-151.0,0.00019173,2]
[388852848,1759426233331,-151.0,0.00019173,2]
[388852849,1759426233343,-151.0,0.00019173,2]
[388852850,1759426233354,-157.37626526,0.00019173,2]
[388852851,1759426233365,-198.0,0.00019173,2]
[388852852,1759426233376,-151.0,0.00019173,2]
[388852853,1759426233387,-151.0,0.00019173,2]
[388852854,1759426233398,-151.0,0.00019173,2]
[388852855,1759426233410,-151.0,0.00019173,2]
[388852856,1759426233421,-151.0,0.00019173,2]
[388852857,1759426233432,-151.0,0.00019173,2]
[388852858,1759426233443,-151.0,0.00019173,2]
[388852859,1759426233454,-151.0,0.00019173,2]
[388852860,1759426233465,-500.0,0.00019173,2]
[388852861,1759426233476,-500.0,0.00019173,2]
[388852862,1759426233487,-151.0,0.00019173,2]
[388852863,1759426233498,-151.0,0.00019173,2]
[388852864,1759426233509,-151.0,0.00019173,2]
[388852865,1759426233520,-151.0,0.00019173,2]
[388852866,1759426233532,-151.0,0.00019173,2]
[388852867,1759426233541,-151.0,0.00019173,2]
[388852868,1759426233553,-151.0,0.00019173,2]
[388852869,1759426233563,-151.0,0.00019173,2]
[388852870,1759426233573,-151.0,0.00019173,2]
[388852871,1759426233583,-151.0,0.00019173,2]